Cogmind - Beta 14 @@@ ROGUE MODE // 2024.10.05 @ 16:42:27 Player: Jay Result: Destroyed by Autobeam Turret with Autobeam Performance ------------- Evolutions (0) 0 Regions Visited (2) 400 Robots Destroyed (12) 60 Value Destroyed (261) 261 Prototype IDs (0) 0 Alien Tech Used (0) 0 Bonus (0) 0 TOTAL SCORE: 721 Bonus ------- None Cogmind --------- Core Integrity 0/250 Matter 300/300 Energy 200/200 System Corruption 0% Temperature Cool (30) Movement Rolling (110) Location -10/Subcaves Parts ------- > --- POWER (1) -------- Subdweller Power Source > --- PROPULSION (2) --- Subdweller Monowheel > --- UTILITY (2) ------ Subdweller Optics Sensor Array > --- WEAPON (2) ------- (None) > --- INVENTORY (5) ---- Ion Engine Peak State ------------ > --- POWER ------------ Light Nuclear Core > --- PROPULSION ------- Aluminum Leg Aluminum Leg > --- UTILITY ---------- Sensor Array Improved Terrain Scanner > --- WEAPON ----------- Medium Laser Medium Laser > --- INVENTORY -------- Ion Engine [Rating: 11] Favorites ----------- Power Ion Engine Engine Ion Engine Power Core Light Nuclear Core Propulsion Aluminum Leg Leg Aluminum Leg Wheel Subdweller Monowheel Utility Sensor Array Device Sensor Array Weapon Medium Laser Energy Gun Medium Laser Build | -11 -10 -10 ------- Run | Yrd Mat Sub Slots Evolved . | . . . Power . | . . . Propulsion . | . . . Utility . | . . . Weapon . | . . . Parts Attached 13 | 8 2 3 Power 3 | 1 1 1 Engine 2 | 1 . 1 Core 1 | . 1 . Reactor . | . . . Propulsion 3 | 2 . 1 Treads . | . . . Leg 2 | 2 . . Wheel 1 | . . 1 Hover . | . . . Flight . | . . . Utility 5 | 3 1 1 Device 5 | 3 1 1 Storage . | . . . Processor . | . . . Hackware . | . . . Protection . | . . . Artifact . | . . . Weapon 2 | 2 . . Energy Gun 2 | 2 . . Energy Cannon . | . . . Ballistic Gun . | . . . Ballistic Cannon . | . . . Launcher . | . . . Special Weapon . | . . . Impact Weapon . | . . . Slashing Weapon . | . . . Piercing Weapon . | . . . Special Melee Weapon . | . . . Unidentified Prototypes . | . . . Parts Lost 5 | . . 5 Power 1 | . . 1 Propulsion 2 | . . 2 Utility . | . . . Weapon 2 | . . 2 Highest Loss Streak 3 | . . 3 To Critical Strikes . | . . . Average Slot Usage (%) 98 | . 100 96 Engine 9 | . 9 11 Core 3 | . 4 2 Leg 27 | . 28 27 Device 28 | . 28 28 Energy Gun 27 | . 28 25 Peak Build Rating 11 | 9 11 11 Average Rating 9 | 4 9 9 On Entrance 6 | . 9 11 Naked Turns . | . . . Heaviest Build 12 | 11 11 12 Greatest Support 20 | 20 20 20 Greatest Overweight (x) 2 | 2 . . Average Overweight (x) . | . . . Largest Inventory Capacity 5 | 5 5 5 Average Capacity 5 | 5 5 5 Most Carried 2 | . 1 2 Average Carried . | . . 1 Final Capacity 5 | 5 5 5 Final Carried 1 | . 1 1 Class Distribution -------------------- 100% | Mutant Dominant Class ---------------- Mutant | -10/Materials Mutant | -10/Subcaves Resources | -11 -10 -10 ----------- Run | Yrd Mat Sub Matter Collected 330 | 258 42 30 Remotely 258 | 258 . . Salvage Created 404 | 133 95 176 Parts 21 | 5 3 13 Haulers Intercepted . | . . . Recyclers Shooed . | . . . Parts Field Recycled . | . . . Retrieved Matter . | . . . Parts Self-Destructed 9 | . . 9 Prevented . | . . . Kills | -11 -10 -10 ------- Run | Yrd Mat Sub Combat Hostiles Destroyed 9 | . 2 7 Guns 9 | . 2 7 Classes Destroyed 5 | 2 1 2 Tunneler 2 | 2 . . Recycler 1 | 1 . . Swarmer 4 | . . 4 Grunt 2 | . 2 . Subdweller 3 | . . 3 Best Kill Streak 4 | 3 2 4 Combat Bots Only 4 | . 2 4 Max Kills in Single Turn 1 | 1 1 1 Gunslinging . | . . . Exploded . | . . . Melee . | . . . Uniques/NPCs Destroyed . | . . . Combat | -11 -10 -10 -------- Run | Yrd Mat Sub Hostile Shots Fired 109 | . 11 98 Missed 34 | . 1 33 Damage Taken 788 | . 147 641 Core 252 | . 10 242 Absorbed by Shields . | . . . Core Remaining (%) 100 | 100 . . Volleys Fired 45 | 10 11 24 Largest 2 | 2 2 2 Hottest 100 | 100 100 100 Shots Fired 78 | 20 22 36 Gun 78 | 20 22 36 Cannon . | . . . Launcher . | . . . Special . | . . . Kinetic . | . . . Thermal 78 | 20 22 36 Explosive . | . . . Electromagnetic . | . . . Robot Hit Streak 9 | 8 5 9 Robot Miss Streak 3 | 1 2 3 Penetration Max . | . . . Secondary Targets . | . . . Shots Hit Robots 46 | 12 11 23 Core Hits 18 | 4 5 9 Critical Kills . | . . . Critical Parts Destroyed . | . . . Critical Strikes 4 | . . 4 Burn 4 | . . 4 Melee Attacks . | . . . Impact . | . . . Slashing . | . . . Piercing . | . . . Sneak Attacks . | . . . Combat Hostiles . | . . . Follow-up Attacks . | . . . Damage Inflicted 577 | 151 137 289 Guns 577 | 151 137 289 Cannons . | . . . Explosions . | . . . Melee . | . . . Ramming . | . . . Kinetic . | . . . Thermal 577 | 151 137 289 Explosive . | . . . Electromagnetic . | . . . Impact . | . . . Slashing . | . . . Piercing . | . . . Highest Corruption . | . . . Average Corruption . | . . . Corruption Purged . | . . . Corruption Blocked . | . . . Overload Shots . | . . . Overflow Damage . | . . . Projectiles . | . . . Explosions . | . . . Melee . | . . . Knockbacks . | . . . Impact . | . . . Kinetic . | . . . Secondary . | . . . Self-Inflicted Damage . | . . . Shots . | . . . Rammed . | . . . Targets Rammed . | . . . Kicked . | . . . Crushed . | . . . Highest Temperature 384 | 198 384 1 Average Temperature 137 | 89 180 1 Received Heat Transfer 339 | . 81 258 Siege Activations . | . . . Robots Corrupted . | . . . Combat Hostiles . | . . . Parts Fried . | . . . Impact Corruptions . | . . . Robots Melted . | . . . Combat Hostiles . | . . . Parts Melted 6 | 2 2 2 Heat Transferred 1998 | 444 407 1147 Parts Sabotaged . | . . . Parts Stolen . | . . . Parts Stripped . | . . . Power Chain Reactions . | . . . Alert | -11 -10 -10 ------- Run | Yrd Mat Sub Peak Influence 50 | 15 50 . Initial 9 | . 9 . Average 21 | 6 23 . Maximum Alert Level . | . . . Low Security (%) 100 | 100 100 . Level 1 . | . . . Level 2 . | . . . Level 3 . | . . . Level 4 . | . . . Level 5 . | . . . High Security . | . . . Max Security . | . . . Squads Dispatched . | . . . Investigation . | . . . Extermination . | . . . Reinforcement . | . . . Assault . | . . . Garrison . | . . . Intercept . | . . . Searches Triggered . | . . . Construction Impeded . | . . . Haulers Reinforced . | . . . Active Scanning Responses . | . . . Cargo Convoy Interrupts . | . . . Stealth | -11 -10 -10 --------- Run | Yrd Mat Sub Distress Signals . | . . . Communications Jammed . | . . . Distress Signals . | . . . Times Spotted 19 | . 2 17 Peak Tracking Total 6 | . 2 6 Tactical Retreats 3 | . . 3 Traps | -11 -10 -10 ------- Run | Yrd Mat Sub Traps Triggered . | . . . Indirectly . | . . . Trap Hack Attempts . | . . . Triggered . | . . . Disarmed . | . . . Reprogrammed . | . . . Reused . | . . . Traps Extracted . | . . . Installed . | . . . Triggered . | . . . Machines | -11 -10 -10 ---------- Run | Yrd Mat Sub Machines Disabled . | . . . Max in Single Turn . | . . . Machines Repaired . | . . . Machines Dismantled . | . . . Machines Sabotaged . | . . . Overloaded Fab Kills . | . . . Hacking | -11 -10 -10 --------- Run | Yrd Mat Sub Machines Accessed . | . . . Terminals . | . . . Fabricators . | . . . Repair Stations . | . . . Recycling Units . | . . . Scanalyzers . | . . . Garrison Access . | . . . Total Hacks . | . . . Successful . | . . . Failed . | . . . Catastrophic . | . . . Database Lockouts . | . . . Manual . | . . . Terminals . | . . . Fabricators . | . . . Repair Stations . | . . . Recycling Units . | . . . Scanalyzers . | . . . Garrison Access . | . . . Terminal Hacks . | . . . Fabricator Hacks . | . . . Repair Station Hacks . | . . . Recycling Unit Hacks . | . . . Scanalyzer . | . . . Garrison Access Hacks . | . . . Unauthorized Hacks . | . . . Terminals . | . . . Fabricators . | . . . Repair Stations . | . . . Recycling Units . | . . . Scanalyzers . | . . . Garrison Access . | . . . Data Cores Recovered . | . . . Used . | . . . Hacking Detections . | . . . Full Trace Events . | . . . Feedback Events . | . . . Feedback Blocked . | . . . Robot Schematics Acquired . | . . . Robots Built . | . . . Authchips . | . . . Time . | . . . Total Robot Build Rating . | . . . Part Schematics Acquired . | . . . Parts Built . | . . . Authchips . | . . . Time . | . . . Total Part Build Rating . | . . . Parts Repaired . | . . . Time . | . . . Parts Recycled . | . . . Recycled Matter . | . . . Retrieved Matter . | . . . Retrieved Components . | . . . Parts Scanalyzed . | . . . Part Schematics Acquired . | . . . Parts Damaged . | . . . Bothacking | -11 -10 -10 ------------ Run | Yrd Mat Sub Used RIF Installer . | . . . Robots Hacked . | . . . Non-combat . | . . . Combat . | . . . Robot Hacks Applied . | . . . Relay Couplers Released . | . . . Fabnet Peak Effective % . | . . . Robots Rewired . | . . . Allies Hacked . | . . . Hacks Repelled . | . . . Allies | -11 -10 -10 -------- Run | Yrd Mat Sub Total Allies . | . . . Largest Group . | . . . Highest-Rated Group . | . . . Highest-Rated Ally . | . . . Total Orders . | . . . Ally Attacks . | . . . Total Damage . | . . . Kills . | . . . Allies Corrupted . | . . . Allies Melted . | . . . Intel | -11 -10 -10 ------- Run | Yrd Mat Sub Robot Analysis Total . | . . . Derelict Logs Recovered 1 | . . 1 Drone Launches . | . . . Drone Recoveries . | . . . Exploration | -11 -10 -10 ------------- Run | Yrd Mat Sub Turns Passed 1317 | 89 766 462 Spaces Moved 447 | 39 110 298 Core 19 | 19 . . Treads . | . . . Legs 412 | 20 110 282 Wheels 16 | . . 16 Hover . | . . . Flight . | . . . Fastest Speed 50 | 50 120 110 Average Speed 119 | 121 120 119 Slowest Speed 150 | 150 120 120 Overloaded Moves . | . . . Propulsion Burnouts . | . . . Robots Hopped . | . . . Cave-ins Triggered . | . . . Exploration Rate (%) 13 | 4 15 21 Regions Visited 2 Branch Regions 1 Pre-discovered Areas 1 | . . 1 Known Exits Taken . | . . . Unknown Exits Taken 2 | 1 1 . Scrap Searched . | . . . Spaces Dug . | . . . Terrain Destroyed . | . . . Melee . | . . . Projectile . | . . . AOE . | . . . Terrain Rammed . | . . . Walls Destroyed . | . . . Machines Disabled . | . . . Actions | -11 -10 -10 --------- Run | Yrd Mat Sub Total 1144 | 56 721 367 Wait 640 | . 599 41 Move 445 | 38 109 298 Hop . | . . . Pick Up 1 | . . 1 Fast Attach 8 | 7 . 1 Attach 1 | . . 1 Detach . | . . . Swap 4 | 1 2 1 Drop . | . . . Fire 45 | 10 11 24 Melee . | . . . Ram . | . . . Kick . | . . . Crush . | . . . Escape Stasis . | . . . Rewire . | . . . Trap . | . . . Miscellaneous . | . . . Route ------- -11/Scrapyard -10/Materials -10/Subcaves (discovered 2 exits: [*Mat] / [*Rec]) History --------- Turn | Location | Event 55 | -11/Scrapyard | Discovered new exit (range 15) 90 | -11/Scrapyard | Entered Materials 182 | -10/Materials | Discovered new exit (range 12) 303 | -10/Materials | Build established: Mutant 856 | -10/Materials | Entered Subcaves 876 | -10/Subcaves | Learned location of Recycling (-9) 1178 | -10/Subcaves | Discovered new exit (range 19) 1291 | -10/Subcaves | Discovered new exit (range 14) 1293 | -10/Subcaves | Core integrity fell below 50% 1315 | -10/Subcaves | Core integrity fell below 20% 1318 | -10/Subcaves | Destroyed by Autobeam Turret with Autobeam Last Messages --------------- 01112_ Acquired 10 matter. 01178_ EXIT=FOUND 01256_ Med. Laser destroyed. 01260_ S-10 Pest destroyed. 01262_ Subatomizers dissect the Flight Unit. 01262_ S-10 Pest destroyed. 01268_ Flight Unit fries itself beyond repair. 01270_ Lgt. Ion Engine fries itself beyond repair. 01270_ Lgt. Assault Rifle fries itself beyond repair. 01271_ Lgt. Ion Engine fries itself beyond repair. 01272_ Subatomizers dissect the Lgt. Assault Rifle. 01273_ Lgt. Assault Rifle fries itself beyond repair. 01274_ Flight Unit fries itself beyond repair. 01280_ S-10 Pest destroyed. 01291_ EXIT=FOUND 01291_ Aluminum Leg destroyed. 01292_ Lgt. Ion Engine fries itself beyond repair. 01292_ Med. Laser destroyed. 01301_ Acquired 10 matter. 01310_ Aluminum Leg destroyed. Map ----- +----------------------------------------------------+ | ???????????###?## #??## #???????????? | | ??????????## ## ##??# #???????????? | | ??????????#" ##### ### #???????????? | | ??????????? ### #??? #???????????? | | ???????????????# ## ##????#???????????? | | ??????????????## #????????????????? | | ??????????????# < #????????????????? | | ??????????????## ## ##????????????????? | | ???????????????## ### #?????????????????? | | ???????????????## ### #?????????????????? | | ??????????????## ### ????????????????? | | ??????????????# ## ??????????????? | | ?????????###??## ## #### ?????????????? | | ??????#### ##??# ### #??## # ???????????? | | ?????## #??## #?# #??? #? ##??????????? | | ?????# ##?# #?# #??? #?? #??????????? | | ?????# #?# ####### #????##???#??????????? | | ?????# #?## #????###????????????????????? | | ??????# #??# ##??????????????????????????? | | ??????## #??# #??????????????????????????? | | ???????## #### ###########?????????????????????? | | ???????## % ##??#" """#?????????????????????? | | ???????# %%##???# "#?????????????????????? | | ???????#"""" " ###### "#?????????????????????? | | ???????##""" "" ## t""##????????????????????? | | ????????##### @ <#????????????????????? | | ????????????# t""##????????????????????? | | ????????????# # "#?????????????????????? | | ????????????## # "#?????????????????????? | | ?????????????# ? ##" """#?????????????????????? | | ?????????????# ##########?????????????????????? | | ?????????????# ? #??????????????????????????????? | | ?????????????# ##??????????????????????????????? | | ????????????# ###???????????????????????????????? | | ??????????? #?????????????????????????????????? | | ??????????% #?????????????????????????????????? | | ????????? % ?????????????????????????????????? | | ????????#### ?????????????????????????????????? | | ???????????## ?????????????????????????????????? | | ????????????## ?????????????????????????????????? | | ?????????????# ?????????????????????????????????? | | ????????????? ?????????????????????????????????? | | ????????????? ?????????????????????????????????? | | ????????????? ?????????????????????????????????? | | ?????????????###?????????????????????????????????? | | ?????????????????????????????????????????????????? | | ?????????????????????????????????????????????????? | | ?????????????????????????????????????????????????? | | ?????????????????????????????????????????????????? | | ?????????????????????????????????????????????????? | +----------------------------------------------------+ Best States ------------- Heat Dissipation 25 Energy Generation 15 Energy Capacity 250 Matter Stores 300 Matter Capacity 300 Sight Range 21 Robot Scan Range 14 Terrain Scan Range 16 Terrain Scan Density 10 Evasion (%) 55 Item Schematics ----------------- None Robot Schematics ------------------ None Fabricated ------------ Nothing Alien Tech Used ----------------- None Achievements -------------- None Challenges ------------ None Game ------ Seed BlastShadePenetrator Manual? 0 Play Time 00:07:52 Cumulative 10.1 hours Start 2024.10.05 @ 16:37:32 End 2024.10.05 @ 16:42:27 Sessions 1 Manual Loads 0 Difficulty Rogue Special Mode None Game No. 38 Rogue 38 Adventurer 0 Explorer 0 Win Type - Total 0 Types 0/0/0/0/0/0/0/0/0 Lore% 9 Gallery% 17 Achievement% 15 Wizard Run 0 Options --------- Layout 0 ASCII 0 Keyboard 1 Movement Numpad Keybinds 0 Fullscreen 1 Font 18/CogWide Map View 76x50 Zoom Use 0% Tactical HUD 1 Map Filters NONE Filters NONE Steam 1 RUN: e9c9a8b2-af50-41e9-b0f2-ad0c88bdd16d